bitfinex/quotes_SOLUSD_20241009
["timestamp","ask_amount","ask_price","bid_price","bid_amount"]
[1728486004650,7.0707,141.43,141.39,7.0725]
[1728486004847,7.0727,141.39,141.36,20.0]
[1728486005062,7.0727,141.39,141.35,77.0745]
[1728486005357,7.0722,141.4,141.36,7.074]
[1728486006057,57.3885,141.46,141.36,7.074]
[1728486006058,1.41709607,141.45,141.37,1.41440542]
[1728486006267,7.0714,141.42,141.38,7.073]
[1728486006448,7.0714,141.42,141.39,1.41432404]
[1728486007262,7.0722,141.4,141.36,24.7589]
[1728486007562,7.0727,141.39,141.36,17.685]
[1728486007743,1.41709607,141.43,141.36,17.685]
[1728486007950,7.0724,141.4,141.36,24.7591]
[1728486011356,7.0705,141.44,141.41,1.4140665]
[1728486012377,7.0705,141.44,141.42,1.41402438]
[1728486012662,7.0697,141.45,141.41,8.48552709]
[1728486013466,7.0697,141.45,141.41,7.0715]
[1728486013666,7.0702,141.44,141.42,1.41397684]
[1728486014163,15.8515,141.46,141.42,1.41397684]
[1728486014360,22.9208,141.46,141.42,8.48457684]
[1728486014758,22.9208,141.46,141.43,7.0706]
[1728486015443,15.8515,141.46,141.43,7.0706]
[1728486015662,7.0682,141.48,141.44,8.48390477]
[1728486015968,7.0682,141.48,141.44,7.0701]
[1728486016172,6.5276,141.49,141.45,1.41366717]
[1728486016467,13.5952,141.49,141.45,7.0694]
[1728486017044,7.0682,141.48,141.44,24.87059]
[1728486017244,7.94469607,141.49,141.43,23.776884]
[1728486017446,7.94469607,141.49,141.42,20.0]
[1728486017644,7.94469607,141.49,141.43,23.776884]
[1728486017858,7.0687,141.47,141.43,100.846984]
[1728486018065,7.0683,141.48,141.44,8.48377702]
[1728486018862,6.5276,141.49,141.45,41.575974]
[1728486019060,13.5953,141.49,141.46,1.41350378]
[1728486019562,18.69180547,141.53,141.47,87.6713]
[1728486019741,24.3404094,141.53,141.48,32.25780203]
[1728486021058,7.0661,141.52,141.48,32.25780203]
[1728486021255,7.0661,141.52,141.48,30.844584]
[1728486021468,1.41709607,141.52,141.44,17.6746]
[1728486021642,7.0685,141.48,141.45,20.0]
[1728486021974,7.0679,141.49,141.46,1.41359003]
[1728486022280,7.0679,141.49,141.45,20.0]
[1728486022459,1.41709607,141.52,141.44,24.7446]
[1728486022460,7.0682,141.48,141.44,24.7446]
[1728486022773,7.0677,141.49,141.44,24.7446]
[1728486023073,7.0681,141.48,141.44,17.6746]
[1728486023947,7.0681,141.48,141.44,24.7443]
[1728486024149,7.0677,141.49,141.45,100.846084]
[1728486024349,7.0677,141.49,141.45,100.846484]
[1728486024655,7.0672,141.5,141.46,7.069]
[1728486024851,7.0672,141.5,141.47,1.41346575]
[1728486025471,7.0672,141.5,141.46,7.069]
[1728486025674,7.0676,141.49,141.45,27.0695]
[1728486025851,7.068,141.49,141.45,7.0696]
[1728486026052,7.068,141.49,141.46,1.41353589]
[1728486026350,1.41709607,141.52,141.45,7.0696]
[1728486026545,7.0667,141.51,141.47,8.48212902]
[1728486026746,1.41709607,141.52,141.44,17.80009]
[1728486027172,7.068,141.49,141.45,7.0694]
[1728486027451,1.41709607,141.52,141.45,1.41358037]
[1728486027452,7.0684,141.48,141.45,1.41358037]
[1728486027645,1.41709607,141.52,141.45,1.41358037]
[1728486027870,7.0678,141.49,141.45,8.48318037]
[1728486028366,7.0676,141.49,141.45,8.48278037]
[1728486028681,7.0676,141.49,141.46,1.41350058]
[1728486028856,7.0671,141.5,141.46,8.48240058]
[1728486029256,7.0676,141.49,141.45,7.0694]
[1728486029476,7.0682,141.48,141.44,24.87009]
[1728486029682,1.41709607,141.52,141.45,1.41361195]
[1728486029853,1.41709607,141.52,141.44,17.6746]
[1728486030053,7.0682,141.48,141.44,24.7445]
[1728486030248,21.41709607,141.52,141.44,17.6746]
[1728486030473,7.0687,141.47,141.44,17.6746]
[1728486030773,7.0691,141.46,141.42,7.071]
[1728486031480,7.0687,141.47,141.43,7.0705]
[1728486032083,1.41709607,141.5,141.44,8.4837771]
[1728486032084,7.0683,141.48,141.44,8.4837771]
[1728486032649,1.41709607,141.5,141.44,1.4137771]
[1728486032871,7.0686,141.47,141.43,24.7467]
[1728486033259,7.0686,141.47,141.44,1.41379886]
[1728486033565,7.0683,141.48,141.44,8.48379886]
[1728486033771,7.0683,141.48,141.44,7.07]
[1728486033956,7.0683,141.48,141.45,1.41369705]
[1728486035787,7.0678,141.49,141.45,8.48329705]
[1728486036076,7.0678,141.49,141.43,87.6763]
[1728486036077,1.41709607,141.52,141.46,1.41360805]
[1728486036283,7.0677,141.49,141.45,48.645574]
[1728486036660,7.0673,141.5,141.46,7.069]
[1728486037066,7.0673,141.5,141.47,1.4134955]
[1728486038266,7.0667,141.51,141.47,8.4819955]
[1728486038464,7.0667,141.51,141.48,1.41029027]
[1728486039080,7.0672,141.5,141.46,7.0689]
[1728486039458,7.0672,141.5,141.47,1.41344757]
[1728486040362,7.0668,141.51,141.47,8.48204757]
[1728486040771,7.0668,141.51,141.48,1.41033819]
[1728486041164,7.0668,141.51,141.47,7.0686]
[1728486041372,7.0668,141.51,141.48,1.41341793]
[1728486041973,7.0668,141.51,141.48,1.41341307]
[1728486042376,0.8313094,141.53,141.49,70.0]
[1728486042697,0.8313094,141.53,141.47,35.3415]
[1728486042698,0.8313094,141.53,141.48,43.902374]
[1728486043169,7.0661,141.52,141.48,68.639274]
[1728486043364,7.8971094,141.53,141.48,68.639274]
[1728486043776,7.8971094,141.53,141.49,7.0675]
[1728486044697,7.8971094,141.53,141.5,1.41317937]
[1728486046288,7.8971094,141.53,141.5,8.48027937]
[1728486046606,7.8971094,141.53,141.49,7.0674]
[1728486047371,7.0661,141.52,141.48,44.7372]
[1728486048381,0.8313094,141.53,141.5,7.0667]
[1728486048702,0.8313094,141.53,141.51,1.41312771]
[1728486049271,7.0672,141.5,141.46,7.069]
[1728486049485,18.22440547,141.53,141.45,87.6733]
[1728486049793,7.0668,141.51,141.47,7.0686]
[1728486050001,7.0668,141.51,141.48,1.41346185]
[1728486050582,7.0668,141.51,141.47,7.0686]
[1728486050777,7.0671,141.5,141.46,27.0689]
[1728486051083,7.0673,141.5,141.47,1.41349623]
[1728486051487,7.0673,141.5,141.46,27.0688]
[1728486051876,18.22440547,141.53,141.46,20.0]
[1728486052095,7.0676,141.49,141.46,20.0]
[1728486052298,35.88930547,141.53,141.45,17.6733]
[1728486052594,7.0677,141.49,141.46,1.41369805]
[1728486053179,7.0677,141.49,141.45,24.7429]
[1728486053397,7.0677,141.49,141.46,1.41366482]
[1728486054104,7.0673,141.5,141.46,8.48246482]
[1728486054278,7.0673,141.5,141.46,7.0688]
[1728486054977,7.0669,141.51,141.47,8.48198482]
[1728486055382,7.0669,141.51,141.48,1.4133707]
[1728486055585,7.0662,141.52,141.48,7.0678]
[1728486055787,7.0662,141.52,141.48,8.48114919]
[1728486056192,18.22440547,141.53,141.48,1.41334919]
[1728486056395,7.0667,141.51,141.47,24.7397]
[1728486057207,7.0672,141.5,141.46,7.0689]
[1728486058206,7.0667,141.51,141.47,7.0685]
[1728486058510,7.0667,141.51,141.47,8.48196329]
[1728486058701,7.0661,141.52,141.48,17.6701]
[1728486058884,7.0661,141.52,141.49,1.41336546]
[1728486059083,7.0661,141.52,141.48,24.738]
[1728486059285,1.41709607,141.51,141.44,35.349]
[1728486059509,1.41709607,141.51,141.46,7.069]
[1728486059510,7.0674,141.5,141.46,7.069]
[1728486059679,1.41709607,141.51,141.45,17.6731]
[1728486059880,7.0676,141.49,141.45,24.7425]
[1728486060407,1.41709607,141.52,141.46,1.4135941]
[1728486060710,23.8730094,141.53,141.49,7.0674]
[1728486060919,7.0661,141.52,141.48,7.068]
[1728486061214,1.41709607,141.51,141.47,17.6713]
[1728486061428,1.41709607,141.51,141.42,7.0707]
[1728486061623,7.0695,141.46,141.42,7.0707]
[1728486061988,1.41709607,141.48,141.41,24.7493]
[1728486061989,7.0696,141.45,141.41,24.7493]
[1728486062417,1.41709607,141.48,141.41,17.6779]
[1728486062418,7.0702,141.44,141.41,17.6779]
[1728486062609,7.0698,141.45,141.41,17.6779]
[1728486062797,19.08769607,141.48,141.42,7.0709]
[1728486063000,7.0691,141.46,141.42,7.0709]
[1728486063313,1.41709607,141.48,141.43,1.41395526]
[1728486063518,16.6448,141.49,141.46,7.0691]
[1728486063694,17.6637,141.54,141.48,7.0681]
[1728486063695,17.79270547,141.53,141.48,7.0681]
[1728486063894,17.79270547,141.53,141.49,1.4134233]
[1728486064220,17.79270547,141.53,141.49,17.6687]
[1728486064221,7.0662,141.52,141.49,17.6687]
[1728486064442,16.3756094,141.53,141.5,1.41327124]
[1728486064593,0.8313094,141.53,141.5,1.41327124]
[1728486065111,0.8313094,141.53,141.51,7.0662]
[1728486065503,0.8313094,141.53,141.52,8.47908821]
[1728486066118,0.8313094,141.53,141.52,7.0661]
[1728486068022,0.8313094,141.53,141.51,17.6661]
[1728486068193,0.8313094,141.53,141.5,7.0671]
[1728486068595,0.8313094,141.53,141.51,1.41310983]
[1728486069020,0.8313094,141.53,141.5,7.067]
[1728486069515,0.8313094,141.53,141.51,1.41315482]
[1728486069721,0.8313094,141.53,141.5,7.067]
[1728486070095,0.8313094,141.53,141.51,7.0666]
[1728486070420,0.8313094,141.53,141.49,43.902374]
[1728486070626,0.8313094,141.53,141.5,7.067]
[1728486071959,0.8313094,141.53,141.51,8.47957343]
[1728486072312,0.8313094,141.53,141.52,7.0661]
[1728486072827,0.8313094,141.53,141.52,27.0661]
[1728486075319,0.8313094,141.53,141.51,7.0665]
[1728486076713,0.8313094,141.53,141.51,8.47956415]
[1728486077039,0.8313094,141.53,141.51,7.0665]
[1728486077727,0.8313094,141.53,141.51,8.47956415]
[1728486078228,0.8313094,141.53,141.52,7.0661]
[1728486078604,0.8313094,141.53,141.52,27.0661]
[1728486078801,0.8313094,141.53,141.52,50.968474]
[1728486079017,0.8313094,141.53,141.52,51.093964]
[1728486079506,0.8313094,141.53,141.52,87.79687255]
[1728486079909,0.8313094,141.53,141.52,95.75952311]
[1728486081028,1.41709607,141.64,141.57,70.0]
[1728486081330,1.41709607,141.64,141.6,7.0621]
[1728486081331,8.47729607,141.64,141.6,7.0621]
[1728486081629,22.7583,141.65,141.61,7.0616]
[1728486081807,22.7583,141.65,141.62,1.41204499]
[1728486083314,15.6986,141.65,141.62,8.47304499]
[1728486083519,22.7584,141.65,141.61,7.0614]
[1728486083836,17.11569607,141.65,141.56,24.7231]
[1728486084006,7.0627,141.59,141.56,17.6595]
[1728486084503,17.11569607,141.65,141.56,17.6595]
[1728486084504,7.062,141.61,141.57,1.41246417]
[1728486084916,7.062,141.61,141.56,24.7235]
[1728486085119,7.062,141.61,141.56,17.6595]
[1728486085304,7.062,141.61,141.57,8.4758778]
[1728486087309,7.0607,141.63,141.59,7.0626]
[1728486087635,7.0607,141.63,141.6,1.41220923]
[1728486087931,17.11569607,141.65,141.57,70.0]
[1728486087932,7.0611,141.62,141.58,7.0629]
[1728486091509,7.0609,141.63,141.59,8.47487601]
[1728486091726,7.0611,141.62,141.58,7.0629]
[1728486091910,1.41709607,141.64,141.56,17.78499]
[1728486092116,1.41709607,141.64,141.57,30.965774]
[1728486092117,7.0616,141.61,141.57,30.965774]
[1728486092317,7.0616,141.61,141.57,100.965774]
[1728486092532,7.0616,141.61,141.57,30.965774]
[1728486093045,7.0616,141.61,141.57,100.965774]
[1728486093224,7.0616,141.61,141.58,1.41227204]
[1728486093542,7.0616,141.61,141.57,100.965774]
[1728486094142,1.41709607,141.6,141.53,87.6631]
[1728486094313,1.41709607,141.6,141.56,7.0637]
[1728486094314,7.0622,141.6,141.56,7.0637]
[1728486094522,7.0621,141.61,141.57,7.0636]
[1728486094719,7.0612,141.62,141.58,8.47508542]
[1728486095328,7.0608,141.63,141.6,1.41219086]
[1728486097052,1.41709607,141.63,141.57,17.78409]
[1728486097340,1.41709607,141.63,141.58,7.0631]
[1728486097637,7.0613,141.62,141.59,1.41226624]
[1728486099328,7.0613,141.62,141.58,7.0631]
[1728486100826,7.0613,141.62,141.59,1.41226589]
[1728486101655,7.0623,141.6,141.57,17.6586]
[1728486101974,7.0622,141.6,141.57,7.0635]
[1728486102840,7.0617,141.61,141.58,1.41240257]
[1728486103026,7.0617,141.61,141.57,7.0635]
[1728486103347,7.0613,141.62,141.58,8.4754187]
[1728486103948,7.0607,141.63,141.58,19.0700187]
[1728486104327,7.0607,141.63,141.59,7.0624]
[1728486104845,7.0614,141.62,141.58,24.7207]
[1728486105142,7.0614,141.62,141.59,1.41227485]
[1728486105550,7.0614,141.62,141.58,24.7207]
[1728486105721,7.0614,141.62,141.59,1.41227443]
[1728486105923,7.0614,141.62,141.58,24.7207]
[1728486106146,7.0614,141.62,141.56,70.0]
[1728486106147,7.0622,141.6,141.56,77.0639]
[1728486106652,7.0622,141.6,141.57,8.47590227]
[1728486106828,7.0618,141.61,141.57,8.47590227]
[1728486107548,7.0618,141.61,141.58,7.063]
[1728486107734,7.0618,141.61,141.59,1.41229622]
[1728486109043,7.0618,141.61,141.58,7.063]
[1728486109239,7.0618,141.61,141.57,24.7221]
[1728486109543,1.41709607,141.6,141.56,20.0]
[1728486109749,7.0634,141.58,141.54,24.7267]
[1728486110124,7.0628,141.59,141.55,8.4770729]
[1728486110450,7.0618,141.61,141.57,7.0632]
[1728486110754,21.41709607,141.64,141.58,8.47543258]
[1728486110931,21.41709607,141.64,141.57,7.0635]
[1728486111137,21.41709607,141.64,141.56,17.6601]
[1728486111138,7.0621,141.6,141.56,17.6601]
[1728486111444,7.0621,141.6,141.56,24.724]
[1728486112352,8.47739607,141.64,141.59,7.0622]
[1728486112523,1.41709607,141.64,141.58,17.6576]
[1728486112830,7.0625,141.6,141.56,43.902374]
[1728486113034,7.0625,141.6,141.56,50.966474]
[1728486113442,7.0625,141.6,141.56,50.840984]
[1728486114152,19.06749607,141.64,141.56,20.0]
[1728486114355,1.41709607,141.63,141.56,20.0]
[1728486114654,7.0624,141.6,141.56,27.064]
[1728486114840,1.41709607,141.63,141.56,20.0]
[1728486115041,7.0632,141.58,141.55,17.6605]
[1728486115428,1.41709607,141.61,141.56,1.41261174]
[1728486115636,7.0622,141.6,141.56,8.47671174]
[1728486116451,7.0622,141.6,141.56,7.0641]
[1728486117555,7.0622,141.6,141.57,1.41247628]
[1728486118437,7.0622,141.6,141.56,7.0641]
[1728486119352,1.41709607,141.64,141.55,17.6605]
[1728486119557,7.0631,141.58,141.55,17.6605]
[1728486119857,7.0629,141.59,141.55,7.0646]
[1728486120055,7.0629,141.59,141.56,1.41265382]
[1728486120257,1.41709607,141.6,141.56,1.41265382]
[1728486120559,8.47939607,141.6,141.56,8.47675382]
[1728486120729,7.0626,141.59,141.55,7.0644]
[1728486121662,7.0622,141.6,141.56,8.47659659]
[1728486122161,7.0626,141.59,141.55,7.0644]
[1728486122853,7.67859607,141.61,141.56,1.41256677]
[1728486123056,7.0622,141.6,141.56,8.47656677]
[1728486123262,7.0622,141.6,141.56,8.47636677]
[1728486123641,13.3233,141.61,141.57,7.0635]
[1728486123843,13.3233,141.61,141.58,1.41247572]
[1728486124766,7.0612,141.62,141.58,8.47537572]
[1728486125066,7.0616,141.61,141.58,7.0629]
[1728486125356,1.41709607,141.63,141.58,7.0629]
[1728486125562,7.0613,141.62,141.58,7.0629]
[1728486126060,7.0613,141.62,141.58,8.47525742]
[1728486126441,6.5177,141.64,141.59,17.656]
[1728486126832,7.0607,141.63,141.59,24.7184]
[1728486127634,7.0607,141.63,141.6,1.41222062]
[1728486127852,7.0607,141.63,141.59,24.7184]
[1728486130448,7.0607,141.63,141.6,1.41220837]
[1728486130665,7.0607,141.63,141.59,24.7184]
[1728486131652,7.0607,141.63,141.6,1.41219885]
[1728486132287,7.0604,141.64,141.6,8.47409885]
[1728486132444,7.0604,141.64,141.6,7.0619]
[1728486132841,1.41709607,141.63,141.56,17.6591]
[1728486133051,1.41709607,141.63,141.57,20.0]
[1728486133365,7.0617,141.61,141.58,1.41244825]
[1728486135044,7.061,141.63,141.59,7.0625]
[1728486135779,7.061,141.63,141.6,1.41223091]
[1728486136181,7.061,141.63,141.59,7.0624]
[1728486136889,7.061,141.63,141.6,1.41227538]
[1728486137391,7.0604,141.64,141.6,8.47418637]
[1728486137567,7.0606,141.63,141.6,7.062]
[1728486137897,7.0606,141.63,141.61,1.41213035]
[1728486139592,17.11569607,141.65,141.59,7.0624]
[1728486139797,1.41709607,141.64,141.57,27.0636]
[1728486139997,7.062,141.61,141.57,27.0636]
[1728486141901,7.062,141.61,141.58,7.0631]
[1728486144290,1.41709607,141.64,141.57,20.0]
[1728486144491,8.47959607,141.6,141.56,24.7243]
[1728486144690,7.0625,141.6,141.56,24.7243]
[1728486145994,7.0625,141.6,141.57,1.41248833]
[1728486146498,7.0625,141.6,141.57,8.47608833]
[1728486148194,1.41709607,141.63,141.54,35.3245]
[1728486148398,15.8359,141.6,141.52,27.066]
[1728486148714,7.0647,141.55,141.51,24.7321]
[1728486149193,7.0651,141.54,141.51,24.7321]
[1728486149505,7.0646,141.55,141.51,24.7322]
[1728486149706,7.0643,141.56,141.51,17.6657]
[1728486149880,7.0643,141.56,141.52,8.47896459]
[1728486150592,1.41709607,141.59,141.53,13.43006772]
[1728486150800,23.48919607,141.6,141.54,13.43006772]
[1728486150999,1.41709607,141.59,141.53,7.0654]
[1728486151900,7.0633,141.58,141.54,1.41278833]
[1728486152288,7.0633,141.58,141.54,8.47768833]
[1728486152801,1.41709607,141.59,141.55,7.0642]
[1728486153101,8.47999607,141.59,141.55,7.0642]
[1728486153309,8.47999607,141.59,141.54,26.13988833]
[1728486153689,7.0629,141.59,141.54,26.13988833]
[1728486153886,7.0629,141.59,141.55,7.0646]
[1728486154088,7.0629,141.59,141.56,1.41265386]
[1728486154818,7.0629,141.59,141.55,8.47726702]
[1728486156205,7.0629,141.59,141.55,7.0646]
[1728486157499,7.0642,141.56,141.52,7.066]
[1728486157906,7.0637,141.57,141.53,8.47839429]
[1728486158207,1.41709607,141.59,141.53,32.50666201]
[1728486158416,7.0626,141.59,141.55,7.0646]
[1728486158587,7.0626,141.59,141.56,1.4126675]
[1728486159313,8.47969607,141.59,141.55,8.47725434]
[1728486159820,21.41709607,141.59,141.5,17.6672]
[1728486160010,19.07419607,141.59,141.5,24.7339]
[1728486160307,7.0648,141.55,141.5,17.6672]
[1728486160509,7.0648,141.55,141.51,7.0665]
[1728486161616,1.41709607,141.54,141.47,41.1156]
[1728486161912,7.0663,141.52,141.47,24.7391]
[1728486162224,7.0658,141.53,141.49,7.0675]
[1728486162513,7.0642,141.56,141.51,38.16276772]
[1728486162708,7.0638,141.57,141.53,7.0655]
[1728486162908,1.41709607,141.58,141.51,31.09636772]
[1728486163112,7.0641,141.56,141.52,7.066]
[1728486164805,1.41709607,141.55,141.51,17.6663]
[1728486165007,1.41709607,141.58,141.51,17.6663]
[1728486165318,7.0652,141.54,141.51,17.6663]
[1728486165704,7.0652,141.54,141.5,7.0666]
[1728486166106,7.0648,141.55,141.51,8.47960335]
[1728486167615,1.41709607,141.58,141.51,1.41310335]
[1728486167829,7.0643,141.56,141.52,7.0661]
[1728486168814,7.0647,141.55,141.51,7.0664]
[1728486170505,7.0643,141.56,141.52,7.066]
[1728486171714,1.41709607,141.58,141.53,8.47855232]
[1728486171906,7.0637,141.57,141.53,8.47855232]
[1728486172305,29.005,141.59,141.55,7.0643]
[1728486172525,7.0634,141.58,141.54,24.7275]
[1728486172888,7.0634,141.58,141.55,1.41272202]
[1728486173096,29.0051,141.59,141.55,7.0645]
[1728486173294,7.0631,141.58,141.55,7.0645]
[1728486173512,7.0631,141.58,141.55,8.4772243]
[1728486175215,7.0631,141.58,141.55,8.47721064]
[1728486175624,7.0631,141.58,141.54,17.6626]
[1728486175625,7.0631,141.58,141.54,24.7275]
[1728486176120,7.0631,141.58,141.55,1.41271525]
[1728486176307,7.0631,141.58,141.54,24.7275]
[1728486176308,8.48019607,141.58,141.54,24.7275]
[1728486176807,7.0631,141.58,141.54,24.7275]
[1728486177210,8.48019607,141.58,141.54,24.7275]
[1728486179515,7.0638,141.57,141.53,7.0654]
[1728486179819,7.0638,141.57,141.54,7.065]
[1728486180028,7.0638,141.57,141.54,8.47776291]
[1728486180203,21.9422,141.59,141.54,8.47776291]
[1728486180395,7.0633,141.58,141.54,8.47776291]
[1728486180599,1.41709607,141.62,141.55,17.6613]
[1728486180816,23.42339607,141.63,141.56,84.84253455]
[1728486181024,23.42339607,141.63,141.58,17.6576]
[1728486181025,22.0063,141.63,141.58,17.6576]
[1728486181229,7.0612,141.62,141.59,1.41232781]
[1728486184027,1.41709607,141.66,141.58,101.08766772]
[1728486184204,1.41709607,141.66,141.6,7.0621]
[1728486184205,7.0604,141.64,141.6,7.0621]
[1728486184407,7.0607,141.63,141.59,7.0624]
[1728486184711,7.0607,141.63,141.58,101.08766772]
[1728486184908,1.41709607,141.66,141.6,7.0621]
[1728486185117,7.0603,141.64,141.6,7.0621]
[1728486186730,1.41709607,141.63,141.58,17.6576]
[1728486186929,7.0615,141.62,141.59,7.0625]
[1728486187135,7.0607,141.63,141.59,7.0625]
[1728486187531,7.0607,141.63,141.6,1.41222458]
[1728486187833,7.0603,141.64,141.6,8.47432458]
[1728486188032,1.41709607,141.63,141.59,7.0624]
[1728486188223,7.0611,141.62,141.59,7.0624]
[1728486188425,7.0611,141.62,141.58,17.6576]
[1728486188426,7.0611,141.62,141.58,24.7205]
[1728486191037,7.0611,141.62,141.58,17.6576]
[1728486191238,7.0611,141.62,141.59,7.0626]
[1728486193130,1.41709607,141.66,141.6,8.47423177]
[1728486193510,7.0604,141.64,141.6,7.062]
[1728486193938,7.0604,141.64,141.61,1.41214196]
[1728486194120,7.0597,141.65,141.61,7.0616]
[1728486194315,7.0597,141.65,141.61,8.47365257]
[1728486194640,7.0597,141.65,141.61,7.0616]
[1728486196439,22.3227094,141.67,141.6,101.08516772]
[1728486196612,7.0592,141.66,141.62,7.061]
[1728486196816,7.0597,141.65,141.62,17.6527]
[1728486197424,1.41709607,141.64,141.59,17.6554]
[1728486197636,7.0609,141.63,141.59,24.7176]
[1728486197842,1.41709607,141.66,141.59,24.7176]
[1728486197843,7.0603,141.64,141.6,7.062]
[1728486198022,7.0603,141.64,141.6,8.47413939]
[1728486199445,7.0597,141.65,141.61,7.0614]
[1728486199649,7.0597,141.65,141.62,1.41198569]
[1728486200626,7.0593,141.66,141.63,1.41198175]
[1728486200834,0.8313094,141.67,141.64,7.0601]
[1728486201038,0.8313094,141.67,141.65,8.47131259]
[1728486201237,7.8900094,141.67,141.63,24.7118]
[1728486201642,7.8900094,141.67,141.6,17.6542]
[1728486201643,0.8313094,141.67,141.6,17.6542]
[1728486201830,7.0598,141.65,141.62,7.061]
[1728486202140,7.0596,141.65,141.62,7.061]
[1728486202523,7.0594,141.66,141.62,7.061]
[1728486202925,7.0604,141.64,141.6,24.7161]
[1728486203246,7.0599,141.65,141.61,8.47371046]
[1728486203454,7.0602,141.64,141.6,24.7162]
[1728486203957,1.41709607,141.65,141.56,86.4745]
[1728486204263,1.41709607,141.64,141.57,32.50014419]
[1728486204435,7.0607,141.63,141.59,7.0622]
[1728486204760,7.0607,141.63,141.6,1.41216929]
[1728486205326,7.0603,141.64,141.6,8.47426929]
[1728486205553,7.0603,141.64,141.6,21.90433701]
[1728486205857,0.8313094,141.67,141.63,13.43006772]
[1728486206147,7.8901094,141.67,141.63,20.49036772]
[1728486206326,7.8901094,141.67,141.63,7.0603]
[1728486208351,7.0596,141.66,141.62,7.0609]
[1728486208554,1.41709607,141.66,141.61,17.6536]
[1728486209062,7.0602,141.64,141.61,17.6536]
[1728486209358,7.0597,141.65,141.61,24.7152]
[1728486209741,7.0597,141.65,141.62,1.41198701]
[1728486210353,0.8313094,141.67,141.62,71.41198701]
[1728486210536,7.8901094,141.67,141.64,7.0601]
[1728486210735,7.8901094,141.67,141.63,24.7119]
[1728486211048,0.8313094,141.67,141.63,17.6514]
[1728486211254,7.0594,141.66,141.63,17.6514]
[1728486211645,7.0594,141.66,141.62,7.0609]
[1728486213673,7.0597,141.65,141.61,7.0614]
[1728486214149,1.41709607,141.66,141.6,17.6544]
[1728486214359,7.0606,141.63,141.6,24.7165]
[1728486214769,7.0606,141.63,141.59,7.0626]
[1728486214940,1.41709607,141.66,141.58,20.0]
[1728486215161,7.0612,141.62,141.58,27.0627]
[1728486216173,1.41709607,141.66,141.59,7.0626]
[1728486216174,7.0608,141.63,141.59,7.0626]
[1728486217165,7.0602,141.64,141.6,8.47402715]
[1728486217544,7.0602,141.64,141.6,7.0619]
[1728486218251,7.0602,141.64,141.61,1.41211122]
[1728486218454,7.0602,141.64,141.6,7.0619]
[1728486218761,7.0602,141.64,141.61,1.41212158]
[1728486219070,7.0602,141.64,141.6,7.0619]
[1728486219962,7.0602,141.64,141.61,1.41212325]
[1728486220174,7.0602,141.64,141.6,7.0619]
[1728486220945,7.0615,141.62,141.58,27.0629]
[1728486221145,1.41709607,141.63,141.58,27.0629]
[1728486221146,7.0617,141.61,141.58,7.0631]
[1728486221451,1.41709607,141.63,141.58,7.0631]
[1728486221644,7.0612,141.62,141.59,1.41226747]
[1728486221854,7.0612,141.62,141.59,8.47486747]
[1728486222049,7.0612,141.62,141.59,7.0626]
[1728486222762,7.0612,141.62,141.58,17.6577]
[1728486222956,1.41709607,141.64,141.58,17.6577]
[1728486223155,7.0617,141.61,141.58,17.6577]
[1728486224072,7.0617,141.61,141.58,24.7208]
[1728486224278,7.0636,141.57,141.53,7.0651]
[1728486224448,16.96369607,141.6,141.51,135.36036772]
[1728486224849,16.96369607,141.6,141.52,17.6644]
[1728486225774,16.96369607,141.6,141.53,20.0]
[1728486225971,7.0639,141.57,141.53,27.0653]
[1728486227177,16.96369607,141.6,141.54,1.41276131]
[1728486227373,7.0627,141.59,141.55,7.0645]
[1728486227678,22.6089,141.6,141.56,8.47669637]
[1728486227860,15.5466,141.6,141.56,1.41259637]
[1728486228053,15.5466,141.6,141.57,7.0633]
[1728486228676,15.5466,141.6,141.58,8.47561962]
[1728486228981,13.5587,141.62,141.58,7.0631]
[1728486229771,33.6003,141.64,141.59,1.41242234]
[1728486229772,15.9489,141.64,141.59,1.41242234]
[1728486229970,15.9489,141.64,141.62,7.0607]
[1728486230148,16.6834094,141.67,141.6,13.43006772]